fUST/lending_fUST_20250707
["ID","MTS","AMOUNT","RATE_DAILY","PERIOD"]
[370007962,1751827844700,-151.0,0.00018382,2]
[370007963,1751827844710,-174.862177,0.00018382,2]
[370007964,1751827844720,-174.862177,0.00018382,2]
[370007965,1751827844730,-151.0,0.00018382,2]
[370007966,1751827844740,-151.0,0.00018382,2]
[370007967,1751827844750,-9508.84842831,0.00018399,2]
[370007968,1751827844760,-151.0,0.00018399,2]
[370007969,1751827844770,-900.47021866,0.00018424,2]
[370007970,1751827844779,-151.0,0.00018437,2]
[370007971,1751827844789,-151.0,0.00018437,2]
[370007972,1751827844800,-151.0,0.00018437,2]
[370007973,1751827844810,-460.0,0.00018437,2]
[370007974,1751827844819,-151.0,0.00018437,2]
[370007975,1751827844828,-460.0,0.00018437,2]
[370007976,1751827844838,-172.186339,0.00018437,2]
[370007977,1751827844847,-172.186339,0.00018437,2]
[370007978,1751827844857,-460.0,0.00018437,2]
[370007979,1751827844867,-535.7,0.00018437,2]
[370007980,1751827844876,-608.71,0.00018437,2]
[370007981,1751827844886,-460.0,0.00018437,2]
[370007982,1751827844895,-460.0,0.00018437,2]
[370007983,1751827844905,-1553.55,0.00018437,2]
[370007984,1751827844914,-460.0,0.00018437,2]
[370007985,1751827844923,-460.0,0.00018437,2]
[370007986,1751827844932,-460.0,0.00018437,2]
[370007987,1751827844942,-1082.26,0.00018437,2]
[370007988,1751827844951,-460.0,0.00018437,2]
[370007989,1751827844960,-2807.19,0.00018437,2]
[370007990,1751827844970,-151.0,0.00018437,2]
[370007991,1751827844980,-151.0,0.00018437,2]
[370007992,1751827844990,-819.71,0.00018437,2]
[370007993,1751827844999,-151.0,0.00018437,2]
[370007994,1751827845009,-499.83205,0.00018437,2]
[370007995,1751827845018,-499.83205,0.00018437,2]
[370007996,1751827845028,-460.0,0.00018444,2]
[370007997,1751827845037,-241.996529,0.00018444,2]
[370007998,1751827845046,-10690.57527169,0.00018452,2]
[370007999,1751827845056,-151.0,0.00018452,2]
[370008000,1751827845065,-214.199456,0.00018452,2]
[370008001,1751827845075,-151.0,0.00018452,2]
[370008002,1751827845084,-287.738569,0.00018452,2]
[370008003,1751827845093,-151.0,0.00018452,2]
[370008004,1751827845102,-1000.0,0.00018516,2]
[370008005,1751827845111,-241.996529,0.00018528,2]
[370008006,1751827845121,-168.0,0.00018599,2]
[370008007,1751827845130,-1289.88,0.00018609,2]
[370008008,1751827845139,-460.0,0.00018611,2]
[370008009,1751827845149,-460.0,0.00018611,2]
[370008010,1751827845159,-592.9,0.00018611,2]
[370008011,1751827845168,-460.0,0.00018611,2]
[370008012,1751827845177,-1798.69,0.00018611,2]
[370008013,1751827845186,-460.0,0.00018611,2]
[370008014,1751827845195,-1481.8,0.00018611,2]
[370008015,1751827845205,-1776.55,0.00018611,2]
[370008016,1751827845214,-460.0,0.00018611,2]
[370008017,1751827845223,-460.0,0.00018611,2]
[370008018,1751827845232,-1777.26,0.00018611,2]
[370008019,1751827845242,-460.0,0.00018611,2]
[370008020,1751827845251,-460.0,0.00018611,2]
[370008021,1751827845261,-960.36,0.00018611,2]
[370008022,1751827845271,-460.0,0.00018611,2]
[370008023,1751827845279,-460.0,0.00018611,2]
[370008024,1751827845289,-460.0,0.00018611,2]
[370008025,1751827845298,-482.66,0.00018611,2]
[370008026,1751827845307,-1056.27,0.00018611,2]
[370008027,1751827845317,-460.0,0.00018611,2]
[370008028,1751827845326,-460.0,0.00018611,2]
[370008029,1751827845335,-950.61,0.00018611,2]
[370008030,1751827845345,-460.0,0.00018611,2]
[370008031,1751827845355,-460.0,0.00018611,2]
[370008032,1751827845365,-460.0,0.00018612,2]
[370008033,1751827845374,-460.0,0.00018612,2]
[370008034,1751827845384,-460.0,0.00018612,2]
[370008035,1751827845394,-2864.36,0.00018612,2]
[370008036,1751827845403,-512.47,0.00018612,2]
[370008037,1751827845413,-867.11,0.00018612,2]
[370008038,1751827845422,-460.0,0.00018612,2]
[370008039,1751827845432,-1049.37,0.00018612,2]
[370008040,1751827845442,-818.97,0.00018612,2]
[370008041,1751827845454,-241.996529,0.00018612,2]
[370008042,1751827845464,-1680.0,0.00018616,2]
[370008043,1751827845473,-292.2013869,0.00018639,2]
[370008044,1751827845483,-168.0,0.00018653,2]
[370008045,1751827845492,-241.996529,0.00018696,2]
[370008046,1751827845502,-151.0,0.000187,2]
[370008047,1751827845511,-151.0,0.000187,2]
[370008048,1751827845521,-151.0,0.000187,2]
[370008049,1751827845531,-151.0,0.000187,2]
[370008050,1751827845540,-2600.73563526,0.00018711,2]
[370008051,1751827845654,-25846.92323443,0.00018711,2]
[370008052,1751827845671,-62053.06500358,0.00018711,2]
[370008053,1751827845681,-151.0,0.00018711,2]
[370008054,1751827845691,-151.0,0.00018711,2]
[370008055,1751827845701,-151.0,0.00018711,2]
[370008056,1751827845711,-151.0,0.00018711,2]
[370008057,1751827845721,-151.0,0.00018711,2]
[370008058,1751827845730,-234.898134,0.00018711,2]
[370008059,1751827845740,-151.0,0.00018711,2]
[370008060,1751827845749,-460.0,0.00018711,2]
[370008061,1751827845759,-151.0,0.00018711,2]
[370008062,1751827845768,-484.0,0.00018711,2]
[370008063,1751827845778,-172.186339,0.00018711,2]
[370008064,1751827845787,-23.20326125,0.00018711,2]
[370008065,1751827845799,-148.98307775,0.00018711,2]
[370008066,1751827845809,-312.20604496,0.00018711,2]
[370008067,1751827845821,-147.79395504,0.00018711,2]
[370008068,1751827845830,-406.05745936,0.00018711,2]
[370008069,1751827845842,-129.64254064,0.00018711,2]
[370008070,1751827845851,-151.0,0.00018711,2]
[370008071,1751827845863,-250.448248,0.00018711,2]
[370008072,1751827845872,-116.11571863,0.00018711,2]
[370008073,1751827845884,-343.88428137,0.00018711,2]
[370008074,1751827845894,-460.0,0.00018711,2]
[370008075,1751827845904,-66.41653681,0.00018711,2]
[370008076,1751827845916,-290.75999998,0.00018711,2]
[370008078,1751827846142,-409.157496,0.00016965,2]
[370008079,1751827846158,-738.6676937,0.00016965,2]
[370008092,1751827846319,-981.323186,0.00016965,2]
[370008095,1751827846331,-62.6416243,0.00016965,2]
[370008097,1751827846340,-1495.64853715,0.00016965,2]
[370008103,1751827846396,-61.28146285,0.00016965,2]
[370008105,1751827846405,-342.14497176,0.00017239,2]
[370008107,1751827846416,-1214.78502824,0.00017239,2]
[370008109,1751827846425,-2191.79,0.00017239,2]
[370008111,1751827846435,-2191.79,0.00017513,2]
[370008113,1751827846444,-1556.93,0.00017513,2]
[370008115,1751827846453,-2191.79,0.00017787,2]
[370008117,1751827846463,-1556.93,0.00017787,2]
[370008119,1751827846472,-2191.79,0.00018061,2]
[370008121,1751827846482,-618.95620848,0.00018061,2]
[370008124,1751827846494,-937.97379152,0.00018061,2]
[370008126,1751827846503,-686.21639427,0.00018335,2]
[370008128,1751827846515,-915.60908035,0.00018335,2]
[370008143,1751827846649,-499.99999999,0.00016959,2]
[370008145,1751827846659,-589.96452538,0.00018335,2]
[370008147,1751827846668,-1556.93,0.00018335,2]
[370008150,1751827846678,-2191.79,0.00018609,2]
[370008151,1751827846687,-1556.93,0.00018609,2]
[370008153,1751827846696,-1196.37346321,0.00018711,2]
[370008155,1751827846705,-460.0,0.00018711,2]
[370008157,1751827846714,-199.27,0.00018711,2]
[370008159,1751827846723,-151.0,0.00018711,2]
[370008161,1751827846733,-1082.26,0.00018711,2]
[370008163,1751827846744,-460.0,0.00018711,2]
[370008166,1751827846754,-151.0,0.00018711,2]
[370008168,1751827846765,-151.0,0.00018711,2]
[370008170,1751827846774,-460.0,0.00018711,2]
[370008172,1751827846783,-2807.19,0.00018711,2]
[370008174,1751827846792,-151.0,0.00018711,2]
[370008176,1751827846801,-151.0,0.00018711,2]
[370008178,1751827846811,-174.862177,0.00018711,2]
[370008180,1751827846820,-174.862177,0.00018711,2]
[370008182,1751827846829,-151.0,0.00018711,2]
[370008184,1751827846839,-226.189532,0.00018711,2]
[370008186,1751827846848,-819.71,0.00018711,2]
[370008187,1751827846857,-151.0,0.00018711,2]
[370008189,1751827846867,-499.83205,0.00018711,2]
[370008191,1751827846875,-499.83205,0.00018711,2]
[370008193,1751827846883,-151.0,0.00018711,2]
[370008195,1751827846893,-460.0,0.00018718,2]
[370008197,1751827846902,-160.069411,0.00018748,2]
[370008199,1751827846911,-6191.20052317,0.00018762,2]
[370008202,1751827846931,-2742.93961449,0.00018762,2]
[370008205,1751827846951,-1756.43513403,0.00018762,2]
[370008207,1751827846960,-241.996529,0.0001878,2]
[370008209,1751827846969,-1500.0,0.00018796,2]
[370008212,1751827846979,-5000.0,0.0001882,2]
[370008213,1751827846988,-177.6255604,0.00018849,2]
[370008216,1751827846998,-159.3697675,0.00018849,2]
[370008218,1751827847008,-153.0,0.00018849,2]
[370008220,1751827847017,-306.0,0.00018849,2]
[370008222,1751827847026,-575.7832369,0.00018849,2]
[370008224,1751827847035,-412.3641076,0.00018849,2]
[370008225,1751827847044,-177.5104021,0.00018849,2]
[370008227,1751827847053,-159.4673789,0.00018849,2]
[370008229,1751827847062,-153.0,0.00018849,2]
[370008231,1751827847072,-177.7370323,0.00018849,2]
[370008233,1751827847082,-575.9560845,0.00018849,2]
[370008236,1751827847092,-159.4673789,0.00018849,2]
[370008237,1751827847101,-177.7370323,0.00018849,2]
[370008240,1751827847110,-153.0,0.00018849,2]
[370008241,1751827847120,-575.9560845,0.00018849,2]
[370008243,1751827847129,-177.7370323,0.00018849,2]
[370008245,1751827847138,-159.4673789,0.00018849,2]
[370008247,1751827847147,-153.0,0.00018849,2]
[370008250,1751827847156,-575.9560845,0.00018849,2]
[370008252,1751827847167,-575.9560845,0.00018849,2]
[370008254,1751827847176,-177.7370323,0.00018849,2]
[370008256,1751827847186,-177.7370323,0.00018849,2]
[370008258,1751827847195,-575.9560845,0.00018849,2]
[370008259,1751827847204,-575.9560845,0.00018849,2]
[370008262,1751827847214,-241.996529,0.00018865,2]
[370008263,1751827847223,-800.0,0.00018872,2]
[370008266,1751827847232,-1289.88,0.00018883,2]
[370008268,1751827847243,-2191.79,0.00018883,2]
[370008270,1751827847252,-1556.93,0.00018883,2]
[370008272,1751827847262,-460.0,0.00018885,2]
[370008274,1751827847271,-460.0,0.00018885,2]
[370008276,1751827847281,-592.9,0.00018885,2]
[370008278,1751827847290,-460.0,0.00018885,2]
[370008280,1751827847299,-1798.69,0.00018885,2]
[370008281,1751827847308,-460.0,0.00018885,2]
[370008282,1751827847318,-1481.8,0.00018885,2]
[370008283,1751827847327,-1776.55,0.00018885,2]
[370008284,1751827847337,-460.0,0.00018885,2]
[370008285,1751827847347,-460.0,0.00018885,2]
[370008286,1751827847357,-1777.26,0.00018885,2]
[370008287,1751827847367,-154.75978889,0.00018885,2]
[370008289,1751827847376,-460.0,0.00018885,2]
[370008291,1751827847386,-960.36,0.00018885,2]
[370008293,1751827847396,-239.67,0.00018885,2]
[370008296,1751827847406,-460.0,0.00018885,2]
[370008298,1751827847415,-460.0,0.00018885,2]
[370008300,1751827847425,-482.66,0.00018885,2]
[370008302,1751827847434,-1056.27,0.00018885,2]
[370008304,1751827847444,-460.0,0.00018885,2]
[370008306,1751827847453,-524.75,0.00018885,2]
[370008308,1751827847463,-950.61,0.00018885,2]
[370008310,1751827847472,-460.0,0.00018885,2]
[370008312,1751827847482,-460.0,0.00018885,2]
[370008314,1751827847492,-460.0,0.00018886,2]
[370008316,1751827847502,-460.0,0.00018886,2]
[370008318,1751827847511,-460.0,0.00018886,2]
[370008320,1751827847521,-411.17687305,0.00018886,2]
[370009388,1751827867281,5000.0,0.00016801,2]
[370009391,1751827899338,299.36528412,0.00016363,2]
[370009392,1751827941140,-340.0,0.00016859,3]
[370009393,1751827956331,-223.80317226,0.00019,20]
[370009394,1751827961340,600.0,0.0001668,2]
[370009395,1751827966487,-0.98,0.00016859,3]
[370009396,1751827966518,-546.30413592,0.00016867,2]
[370009397,1751827966548,-460.0,0.00016868,2]
[370009398,1751827966575,-487.79653767,0.00016868,2]
[370009399,1751827966602,-500.0,0.00016868,2]
[370009400,1751827966630,-4.91932641,0.00016868,2]
[370009402,1751827967985,-461.50359215,0.00016868,2]
[370009403,1751827968012,-495.08067359,0.00016868,2]
[370009404,1751827968042,-500.0,0.00016868,2]
[370009405,1751827968069,-500.0,0.00016868,2]
[370009406,1751827968098,-43.41573426,0.00016868,2]
[370009407,1751827977138,-267.71943784,0.00016868,2]
[370009408,1751827977165,-343.28056216,0.00016868,2]
[370009409,1751827993022,-300.0,0.00016867,2]
[370009410,1751827993050,-116.71943784,0.00016868,2]
[370009411,1751827993076,-460.0,0.00016868,2]
[370009412,1751827993102,-460.0,0.00016868,2]
[370009413,1751827993130,-663.28056216,0.00016868,2]
[370009414,1751827994452,-405.33943784,0.00016868,2]
[370009415,1751827994480,-586.21536758,0.00016868,2]
[370009416,1751827994507,-460.0,0.00016868,2]
[370009417,1751827994536,-456.58426574,0.00016868,2]
[370009418,1751827994565,-91.86092884,0.00016868,2]
[370009419,1751827995200,-408.13907116,0.00016868,2]
[370009420,1751827995227,-500.0,0.00016868,2]
[370009421,1751827995253,-500.0,0.00016868,2]
[370009422,1751827995279,-500.0,0.00016868,2]
[370009423,1751827995305,-91.86092884,0.00016868,2]
[370009424,1751828201407,166.0,0.00016438,2]
[370009425,1751828264835,543.68094511,0.00016766,2]
[370009426,1751828271708,24900.0,0.00015867,2]
[370009427,1751828288616,5000.0,0.00016801,2]
[370009428,1751828462112,7835.29213109,0.000168,2]
[370009429,1751828470853,475.72082698,0.00016766,2]
[370009430,1751828507320,179.61917048,0.00016357,2]
[370009431,1751828654137,1015.741863,0.00013699,2]
[370009433,1751828676361,416.25572359,0.00016763,2]
[370009434,1751828713992,169.620828,0.00015862,2]
[370009435,1751828722096,28754.07597003,0.00016,2]
[370009436,1751828736386,2358.0484765,0.00015862,2]
[370009437,1751828766954,164.61840128,0.000168,2]
[370009438,1751828804011,6268.23370488,0.000168,2]
[370009440,1751828881762,364.22375815,0.00016763,2]
[370009462,1751829032134,-734.05,0.00016858,3]
[370009464,1751829032144,-300.0,0.00016858,2]
[370009466,1751829032153,-1200.0,0.00016858,2]
[370009468,1751829032162,-445.3416506,0.00016859,2]
[370009470,1751829032172,-500.0,0.00016859,2]
[370009472,1751829032181,-500.0,0.00016859,2]
[370009474,1751829032190,-500.0,0.00016859,2]
[370009476,1751829032199,-500.0,0.00016859,2]
[370009478,1751829032209,-500.0,0.00016859,2]
[370009480,1751829032218,-500.0,0.00016859,2]
[370009482,1751829032227,-510.12516951,0.00016859,2]
[370009484,1751829032237,-545.27195487,0.00016859,2]
[370009486,1751829032247,-935.0,0.0001686,2]
[370009488,1751829032256,-460.0,0.0001686,2]
[370009490,1751829032265,-460.0,0.0001686,2]
[370009492,1751829032274,-460.0,0.0001686,2]
[370009494,1751829032284,-50000.0,0.0001686,2]
[370009496,1751829032293,-460.0,0.0001686,2]
[370009499,1751829032306,-460.0,0.0001686,2]
[370009501,1751829032319,-460.0,0.0001686,2]
[370009504,1751829032333,-460.0,0.0001686,2]
[370009506,1751829032345,-460.0,0.0001686,2]
[370009508,1751829032357,-460.0,0.0001686,2]
[370009511,1751829032368,-1648.69,0.0001686,2]
[370009513,1751829032378,-460.0,0.0001686,2]
[370009515,1751829032391,-460.0,0.0001686,2]
[370009518,1751829032403,-460.0,0.0001686,2]
[370009520,1751829032415,-460.0,0.0001686,2]
[370009521,1751829032428,-460.0,0.0001686,2]
[370009523,1751829032440,-460.0,0.00016861,2]
[370009525,1751829032452,-487.58207288,0.00016861,2]
[370009527,1751829032465,-460.0,0.00016861,2]
[370009530,1751829032477,-460.0,0.00016861,2]
[370009532,1751829032491,-460.0,0.00016861,2]
[370009534,1751829032503,-460.0,0.00016861,2]
[370009537,1751829032514,-460.0,0.00016861,2]
[370009539,1751829032526,-460.0,0.00016861,2]
[370009541,1751829032538,-2459.02,0.00016861,2]
[370009543,1751829032550,-460.0,0.00016861,2]
[370009545,1751829032561,-460.0,0.00016861,2]
[370009548,1751829032573,-1878.33,0.00016861,2]
[370009550,1751829032586,-602.39871282,0.00016861,2]
[370009552,1751829032597,-460.0,0.00016861,2]
[370009555,1751829032610,-460.0,0.00016861,2]
[370009556,1751829032621,-2261.21,0.00016861,2]
[370009557,1751829032632,-460.0,0.00016861,2]
[370009558,1751829032644,-2373.73,0.00016861,2]
[370009559,1751829032657,-460.0,0.00016861,2]
[370009560,1751829032667,-1821.06,0.00016861,2]
[370009561,1751829032679,-460.0,0.00016861,2]
[370009562,1751829032692,-460.0,0.00016861,2]
[370009563,1751829032705,-460.0,0.00016861,2]
[370009564,1751829032717,-1339.43,0.00016861,2]
[370009565,1751829032731,-460.0,0.00016861,2]
[370009566,1751829032743,-460.0,0.00016861,2]
[370009567,1751829032755,-460.0,0.00016861,2]
[370009568,1751829032768,-460.0,0.00016861,2]
[370009569,1751829032781,-1083.34,0.00016861,2]
[370009570,1751829032792,-1423.25,0.00016861,2]
[370009571,1751829032802,-460.0,0.00016861,2]
[370009572,1751829032812,-460.0,0.00016861,2]
[370009573,1751829032823,-460.0,0.00016861,2]
[370009574,1751829032835,-460.0,0.00016861,2]
[370009575,1751829032847,-487.46489355,0.00016862,2]
[370009576,1751829032860,-460.0,0.00016863,2]
[370009577,1751829032873,-460.0,0.00016863,2]
[370009578,1751829032883,-460.0,0.00016863,2]
[370009579,1751829032894,-460.0,0.00016863,2]
[370009580,1751829032906,-349.0528105,0.00016863,2]
[370009581,1751829032918,-460.0,0.00016863,2]
[370009582,1751829032930,-460.0,0.00016863,2]
[370009583,1751829032941,-460.0,0.00016863,2]
[370009584,1751829032952,-460.0,0.00016863,2]
[370009585,1751829032963,-460.0,0.00016863,2]
[370009586,1751829032974,-332.16239496,0.00016863,2]
[370009587,1751829032984,-461.7051965,0.00016863,2]
[370009588,1751829032996,-460.0,0.00016863,2]
[370009589,1751829033007,-460.0,0.00016863,2]
[370009590,1751829033020,-460.0,0.00016863,2]
[370009591,1751829033031,-460.0,0.00016863,2]
[370009592,1751829033042,-460.0,0.00016863,2]
[370009593,1751829033054,-460.0,0.00016863,2]
[370009594,1751829033065,-460.0,0.00016863,2]
[370009595,1751829033075,-460.0,0.00016863,2]
[370009596,1751829033088,-460.0,0.00016863,2]
[370009597,1751829033098,-464.2,0.00016863,2]
[370009598,1751829033110,-460.0,0.00016863,2]
[370009599,1751829033121,-460.0,0.00016863,2]
[370009600,1751829033132,-460.0,0.00016863,2]
[370009601,1751829033144,-460.0,0.00016863,2]
[370009602,1751829033156,-460.0,0.00016863,2]
[370009603,1751829033167,-460.0,0.00016863,2]
[370009604,1751829033178,-460.0,0.00016863,2]
[370009605,1751829033190,-460.0,0.00016863,2]
[370009606,1751829033202,-460.0,0.00016863,2]
[370009607,1751829033213,-460.0,0.00016863,2]
[370009608,1751829033224,-460.0,0.00016863,2]
[370009609,1751829033235,-460.0,0.00016863,2]
[370009610,1751829033246,-460.0,0.00016863,2]
[370009611,1751829033258,-460.0,0.00016863,2]
[370009612,1751829033269,-460.0,0.00016863,2]
[370009613,1751829033281,-460.0,0.00016863,2]
[370009614,1751829033292,-460.0,0.00016863,2]
[370009615,1751829033303,-460.0,0.00016863,2]
[370009616,1751829033315,-460.0,0.00016863,2]
[370009617,1751829033326,-460.0,0.00016863,2]
[370009618,1751829033338,-460.0,0.00016863,2]
[370009619,1751829033349,-460.0,0.00016863,2]
[370009620,1751829033360,-155.41460308,0.00016863,2]
[370009621,1751829033372,-460.0,0.00016863,2]
[370009622,1751829033384,-460.0,0.00016863,2]
[370009623,1751829033396,-500.0,0.00016863,2]
[370009624,1751829033408,-460.0,0.00016863,2]
[370009625,1751829033420,-460.0,0.00016863,2]
[370009626,1751829033432,-460.0,0.00016863,2]
[370009627,1751829033444,-460.0,0.00016863,2]
[370009628,1751829033456,-460.0,0.00016863,2]
[370009629,1751829033467,-460.0,0.00016863,2]
[370009630,1751829033479,-460.0,0.00016863,2]
[370009631,1751829033491,-460.0,0.00016863,2]
[370009632,1751829033502,-460.0,0.00016863,2]
[370009633,1751829033514,-726.78,0.00016863,2]
[370009634,1751829033526,-460.0,0.00016863,2]
[370009635,1751829033538,-460.0,0.00016863,2]
[370009636,1751829033550,-460.0,0.00016863,2]
[370009637,1751829033561,-461.09687291,0.00016863,2]
[370009638,1751829033572,-460.0,0.00016863,2]
[370009639,1751829033584,-460.0,0.00016863,2]
[370009640,1751829033595,-213.35040464,0.00016863,2]
[370009641,1751829033606,-460.0,0.00016863,2]
[370009642,1751829033617,-204.69484356,0.00016863,2]
[370009643,1751829033628,-2304.57,0.00016863,2]
[370009644,1751829033641,-460.0,0.00016863,2]
[370009645,1751829033655,-460.0,0.00016863,2]
[370009646,1751829033666,-446.56293771,0.00016863,2]
[370009647,1751829033678,-482.31,0.00016863,2]
[370009648,1751829033691,-460.0,0.00016863,2]
[370009649,1751829033703,-460.0,0.00016863,2]
[370009650,1751829033714,-460.0,0.00016863,2]
[370009651,1751829033727,-193.08403378,0.00016863,2]
[370009652,1751829033738,-460.0,0.00016863,2]
[370009653,1751829033751,-716.37,0.00016863,2]
[370009654,1751829033762,-460.0,0.00016863,2]
[370009655,1751829033774,-460.0,0.00016863,2]
[370009656,1751829033785,-460.0,0.00016863,2]
[370009657,1751829033796,-460.0,0.00016863,2]
[370009658,1751829033806,-460.0,0.00016863,2]
[370009659,1751829033816,-460.0,0.00016863,2]
[370009660,1751829033826,-460.0,0.00016863,2]
[370009661,1751829033835,-460.0,0.00016863,2]
[370009662,1751829033845,-460.0,0.00016863,2]
[370009663,1751829033856,-156.01390519,0.00016863,2]
[370009664,1751829033865,-606.08501309,0.00016863,2]
[370009665,1751829034102,-460.0,0.00016863,2]
[370009666,1751829034115,-460.0,0.00016863,2]
[370009667,1751829034126,-460.0,0.00016866,2]
[370009668,1751829034136,-460.0,0.00016866,2]
[370009669,1751829034145,-460.0,0.00016866,2]
[370009670,1751829034155,-460.0,0.00016866,2]
[370009671,1751829034165,-500.0,0.00016866,2]
[370009672,1751829034174,-460.0,0.00016866,2]
[370009673,1751829034183,-460.0,0.00016866,2]
[370009674,1751829034193,-479.21105357,0.00016866,2]
[370009675,1751829034203,-460.0,0.00016866,2]
[370009676,1751829034212,-460.0,0.00016866,2]
[370009677,1751829034222,-461.63986407,0.00016866,2]
[370009678,1751829034231,-503.63774006,0.00016866,2]
[370009679,1751829034241,-460.0,0.00016866,2]
[370009680,1751829034250,-460.0,0.00016866,2]
[370009681,1751829034259,-460.07594864,0.00016866,2]
[370009682,1751829034270,-460.0,0.00016866,2]
[370009683,1751829034279,-460.0,0.00016867,2]
[370009684,1751829034289,-460.0,0.00016867,2]
[370009685,1751829034299,-460.45268572,0.00016867,2]
[370009686,1751829034308,-460.0,0.00016867,2]
[370009687,1751829034319,-500.0,0.00016867,2]
[370009688,1751829034328,-460.0,0.00016867,2]
[370009689,1751829034337,-460.0,0.00016867,2]
[370009690,1751829034348,-460.0,0.00016867,2]
[370009691,1751829034358,-460.0,0.00016867,2]
[370009692,1751829034368,-460.0,0.00016867,2]
[370009693,1751829034378,-460.0,0.00016867,2]
[370009694,1751829034388,-460.0,0.00016867,2]
[370009695,1751829034397,-460.0,0.00016867,2]
[370009696,1751829034407,-460.0,0.00016867,2]
[370009697,1751829034417,-460.0,0.00016867,2]
[370009698,1751829034427,-518.66,0.00016867,2]
[370009699,1751829034437,-460.0,0.00016867,2]
[370009700,1751829034446,-460.0,0.00016867,2]
[370009701,1751829034456,-460.0,0.00016867,2]
[370009702,1751829034465,-460.0,0.00016867,2]
[370009703,1751829034475,-568.47,0.00016867,2]
[370009704,1751829034484,-460.0,0.00016867,2]
[370009705,1751829034494,-644.88,0.00016867,2]
[370009706,1751829034503,-1673.97,0.00016867,2]
[370009707,1751829034513,-671.7,0.00016867,2]
[370009708,1751829034523,-1018.32,0.00016867,2]
[370009709,1751829034533,-460.0,0.00016867,2]
[370009710,1751829034543,-460.0,0.00016867,2]
[370009711,1751829034552,-1464.64,0.00016867,2]
[370009712,1751829034562,-1068.81,0.00016867,2]
[370009713,1751829034571,-460.0,0.00016867,2]
[370009714,1751829034580,-500.0,0.00016868,2]
[370009715,1751829034590,-460.460256,0.00016868,2]
[370009716,1751829034600,-460.0,0.00016868,2]
[370009717,1751829034609,-460.0,0.00016868,2]
[370009718,1751829034620,-460.0,0.00016868,2]
[370009719,1751829034629,-460.0,0.00016868,2]
[370009720,1751829034639,-461.3422865,0.00016868,2]
[370009721,1751829034648,-460.0,0.00016868,2]
[370009722,1751829034659,-460.0,0.00016868,2]
[370009723,1751829034668,-460.0,0.00016868,2]
[370009724,1751829034679,-460.0,0.00016868,2]
[370009725,1751829034688,-1000.0,0.00016868,2]
[370009726,1751829034698,-500.0,0.00016868,2]
[370009727,1751829034707,-500.0,0.00016868,2]
[370009728,1751829034717,-500.0,0.00016868,2]
[370009729,1751829034727,-500.0,0.00016868,2]
[370009730,1751829034736,-500.0,0.00016868,2]
[370009731,1751829034745,-542.41934186,0.00016868,2]
[370009732,1751829034754,-828.65464057,0.00016868,2]
[370009733,1751829034764,-460.0,0.00016868,2]
[370009734,1751829034773,-460.0,0.00016868,2]
[370009735,1751829034783,-2141.93,0.00016868,2]
[370009736,1751829034792,-460.0,0.00016868,2]
[370009737,1751829034802,-525.25,0.00016868,2]
[370009738,1751829034811,-1393.2,0.00016868,2]
[370009739,1751829034821,-460.0,0.00016868,2]